[Event "Hungarian Rapid-ch 2022"]
[Site "Ajka"]
[Date "2022.07.15"]
[Round "4.27"]
[White "Nemeth, Zoltan"]
[Black "Molnar, Aurel Jr."]
[Result "0-1"]
[ECO "D71"]
[WhiteElo "2242"]
[BlackElo "2014"]
[Annotator "ChessBase"]
[PlyCount "44"]
[EventDate "2022.07.15"]
[EventType "swiss"]
[EventCountry "HUN"]
[SourceTitle "playchess.com"]
[Source "ChessBase"]
[SourceQuality "1"]
[TimeControl "900+10"]

1. d4 {[%emt 0:00:15]} Nf6 {[%emt 0:00:11]} 2. c4 {[%emt 0:00:03]} g6 {[%emt 0:00:02]} 3. g3 {[%emt 0:00:00]} c6 {[%emt 0:00:04]} 4. Bg2 {[%emt 0:00:03]} d5 {[%emt 0:00:04]} 5. cxd5 {[%emt 0:00:01]} cxd5 {[%emt 0:00:01]} 6. Nf3 {[%emt 0:00:00]} Bg7 {[%emt 0:00:02]} 7. Ne5 {[%emt 0:00:02]} O-O {[%emt 0:00:07]} 8. Nc3 {[%emt 0:00:01]} Nc6 {[%emt 0:00:57]} 9. Nxc6 {[%emt 0:00:02]} bxc6 {[%emt 0:00:01]} 10. O-O {[%emt 0:00:02]} Nd7 {[%emt 0:02:02]} 11. b3 {[%emt 0:00:09]} e5 {[%emt 0:01:19]} 12. dxe5 {[%emt 0:00:36]} Nxe5 {[%emt 0:01:24]} 13. Ba3 {[%emt 0:00:01]} Re8 {[%emt 0:00:04]} 14. Rc1 {[%emt 0:00:01]} Bg4 {[%emt 0:01:21]} 15. h3 {[%emt 0:00:25]} Be6 {[%emt 0:01:08]} 16. Na4 {[%emt 0:00:07]} Rc8 {[%emt 0:00:40]} 17. Bc5 {[%emt 0:00:16]} Qa5 {[%emt 0:01:01]} 18. Bd4 {[%emt 0:00:40]} h5 {[%emt 0:01:54]} 19. Rc5 {[%emt 0:00:49]} Qa6 {[%emt 0:00:27]} 20. Qa1 {[%emt 0:01:26]} Qxe2 {[%emt 0:02:10]} 21. Re1 {[%emt 0:00:03]} Nf3+ {[%emt 0:00:00]} 22. Bxf3 {[%emt 0:00:02]} Qxf3 0-1

[Event "Hungarian Rapid-ch 2022"]
[Site "Ajka"]
[Date "2022.07.15"]
[Round "4.28"]
[White "Majoros, Rozsa Evelin"]
[Black "Balint, Vilmos"]
[Result "0-1"]
[ECO "C08"]
[WhiteElo "2059"]
[BlackElo "2283"]
[Annotator "ChessBase"]
[PlyCount "100"]
[EventDate "2022.07.15"]
[EventType "swiss"]
[EventCountry "HUN"]
[SourceTitle "playchess.com"]
[Source "ChessBase"]
[SourceQuality "1"]
[TimeControl "900+10"]

1. e4 {[%emt 0:00:12]} e6 {[%emt 0:01:08]} 2. d4 {[%emt 0:00:03]} d5 {[%emt 0:00:01]} 3. Nd2 {[%emt 0:00:03]} c5 {[%emt 0:00:05]} 4. exd5 {[%emt 0:00:05]} exd5 {[%emt 0:00:03]} 5. c3 {[%emt 0:00:43]} cxd4 {[%emt 0:00:08]} 6. cxd4 {[%emt 0:00:02]} Nc6 {[%emt 0:00:01]} 7. Ngf3 {[%emt 0:00:11]} Bg4 {[%emt 0:00:05]} 8. h3 {[%emt 0:00:13]} Bf5 {[%emt 0:00:19]} 9. Bb5 {[%emt 0:00:44]} Qb6 {[%emt 0:00:22]} 10. Qe2+ {[%emt 0:01:01]} Be7 {[%emt 0:00:09]} 11. O-O {[%emt 0:00:34]} a6 {[%emt 0:01:30]} 12. Bd3 {[%emt 0:00:30]} Bxd3 {[%emt 0:00:43]} 13. Qxd3 {[%emt 0:00:01]} Nf6 {[%emt 0:00:02]} 14. Nb3 {[%emt 0:00:41]} O-O {[%emt 0:00:09]} 15. Bf4 {[%emt 0:00:24]} Nb4 {[%emt 0:00:13]} 16. Qe2 {[%emt 0:00:30]} Rfe8 {[%emt 0:00:05]} 17. Ne5 {[%emt 0:00:31]} Rac8 {[%emt 0:00:23]} 18. Qd1 {[%emt 0:02:46]} Ne4 {[%emt 0:00:49]} 19. Qh5 {[%emt 0:01:49]} g6 {[%emt 0:00:14]} 20. Qf3 {[%emt 0:00:11]} Rc2 {[%emt 0:02:16]} 21. Bd2 {[%emt 0:02:08]} f6 {[%emt 0:00:14]} 22. Bxb4 {[%emt 0:00:11]} Bxb4 {[%emt 0:00:22]} 23. Nd3 {[%emt 0:00:08]} Bd6 {[%emt 0:00:20]} 24. Rac1 {[%emt 0:00:36]} Rc4 {[%emt 0:00:32]} 25. Nbc5 {[%emt 0:00:20]} Rxd4 {[%emt 0:00:49]} 26. Nd7 {[%emt 0:01:05]} Qd8 {[%emt 0:00:13]} 27. N3c5 {[%emt 0:00:32]} Kg7 {[%emt 0:03:04]} 28. Rfe1 {[%emt 0:01:52]} Nxc5 {[%emt 0:00:12]} 29. Rxe8 {[%emt 0:00:06]} Qxd7 {[%emt 0:00:20]} 30. Qe3 {[%emt 0:00:28]} Re4 {[%emt 0:01:41]} 31. Rxe4 {[%emt 0:00:09]} Nxe4 {[%emt 0:00:02]} 32. Rd1 {[%emt 0:00:37]} Bc5 {[%emt 0:00:09]} 33. Qxe4 {[%emt 0:00:01]} d4 {[%emt 0:00:20]} 34. b4 {[%emt 0:00:10]} Ba7 {[%emt 0:00:11]} 35. Qf4 {[%emt 0:00:30]} Bb6 {[%emt 0:00:11]} 36. Qe4 {[%emt 0:00:20]} h5 {[%emt 0:00:07]} 37. a4 {[%emt 0:00:06]} Qxa4 {[%emt 0:00:14]} 38. Qxb7+ Kh6 {[%emt 0:00:00]} 39. Rb1 {[%emt 0:00:31]} Qc2 {[%emt 0:00:11]} 40. Ra1 {[%emt 0:00:13]} Qb2 {[%emt 0:00:08]} 41. Qxa6 {[%emt 0:00:04]} d3 {[%emt 0:00:02]} 42. Rd1 {[%emt 0:00:12]} Qxf2+ {[%emt 0:00:03]} 43. Kh1 {[%emt 0:00:07]} Qe2 {[%emt 0:00:11]} 44. Qxd3 {[%emt 0:00:02]} Qe5 {[%emt 0:00:10]} 45. Qd6 {[%emt 0:00:10]} Qb5 {[%emt 0:00:13]} 46. Qxf6 {[%emt 0:00:24]} Qxb4 {[%emt 0:00:02]} 47. Rd6 {[%emt 0:00:19]} Qe1+ {[%emt 0:00:07]} 48. Kh2 {[%emt 0:00:03]} Bg1+ {[%emt 0:00:03]} 49. Kh1 {[%emt 0:00:05]} Bf2+ {[%emt 0:00:02]} 50. Kh2 {[%emt 0:00:05]} Qg1# {[%emt 0:00:01]} 0-1

[Event "Hungarian Rapid-ch 2022"]
[Site "Ajka"]
[Date "2022.07.15"]
[Round "4.29"]
[White "Szelenyi, Norbert"]
[Black "Ats, Laszlo Gyorgy"]
[Result "1/2-1/2"]
[ECO "A07"]
[WhiteElo "2277"]
[BlackElo "1923"]
[Annotator "ChessBase"]
[PlyCount "52"]
[EventDate "2022.07.15"]
[EventType "swiss"]
[EventCountry "HUN"]
[SourceTitle "playchess.com"]
[Source "ChessBase"]
[SourceQuality "1"]
[TimeControl "900+10"]

1. g3 {[%emt 0:00:22]} d5 {[%emt 0:00:14]} 2. Nf3 {[%emt 0:00:02]} Nf6 {[%emt 0:00:05]} 3. Bg2 {[%emt 0:00:02]} c6 {[%emt 0:00:01]} 4. O-O {[%emt 0:00:03]} Bg4 {[%emt 0:00:11]} 5. c4 {[%emt 0:00:19]} e6 {[%emt 0:00:31]} 6. cxd5 {[%emt 0:00:07]} exd5 {[%emt 0:00:06]} 7. d3 {[%emt 0:00:58]} Be7 {[%emt 0:00:09]} 8. h3 {[%emt 0:00:05]} Bh5 {[%emt 0:00:04]} 9. Qb3 {[%emt 0:01:10]} Qb6 {[%emt 0:00:10]} 10. Qc2 {[%emt 0:00:01]} Nbd7 {[%emt 0:00:29]} 11. Nc3 {[%emt 0:00:10]} O-O {[%emt 0:00:03]} 12. e4 {[%emt 0:00:05]} dxe4 {[%emt 0:00:30]} 13. dxe4 {[%emt 0:00:01]} Rad8 {[%emt 0:00:27]} 14. Be3 {[%emt 0:00:09]} Qa5 {[%emt 0:00:45]} 15. a3 {[%emt 0:00:18]} h6 {[%emt 0:00:33]} 16. b4 {[%emt 0:06:13]} Qc7 {[%emt 0:00:08]} 17. Nd5 {[%emt 0:00:53]} Nxd5 {[%emt 0:00:11]} 18. exd5 {[%emt 0:00:01]} c5 {[%emt 0:01:33]} 19. bxc5 {[%emt 0:00:33]} Bxc5 {[%emt 0:00:15]} 20. Nh4 {[%emt 0:02:59]} f6 {[%emt 0:01:36]} 21. Rac1 {[%emt 0:00:38]} b6 {[%emt 0:00:02]} 22. a4 {[%emt 0:00:39]} Qb8 {[%emt 0:00:10]} 23. Bf4 {[%emt 0:00:35]} Qb7 {[%emt 0:00:36]} 24. Nf5 {[%emt 0:00:35]} Ne5 {[%emt 0:01:52]} 25. g4 {[%emt 0:01:12]} Be8 {[%emt 0:00:56]} 26. Rfd1 {[%emt 0:00:24]} Qd7 {[%emt 0:00:15]} 1/2-1/2

[Event "Hungarian Rapid-ch 2022"]
[Site "Ajka"]
[Date "2022.07.15"]
[Round "4.30"]
[White "Suranyi, Pal"]
[Black "Laszlo, Janos"]
[Result "0-1"]
[ECO "D32"]
[WhiteElo "2023"]
[BlackElo "2214"]
[Annotator "ChessBase"]
[PlyCount "130"]
[EventDate "2022.07.15"]
[EventType "swiss"]
[EventCountry "HUN"]
[SourceTitle "playchess.com"]
[Source "ChessBase"]
[SourceQuality "1"]
[TimeControl "900+10"]

1. d4 {[%emt 0:00:12]} d5 {[%emt 0:00:20]} 2. c4 {[%emt 0:00:11]} e6 {[%emt 0:00:02]} 3. Nc3 {[%emt 0:00:05]} c5 {[%emt 0:00:02]} 4. cxd5 {[%emt 0:00:02]} exd5 {[%emt 0:00:01]} 5. Nf3 {[%emt 0:00:05]} Nc6 {[%emt 0:00:02]} 6. Bg5 {[%emt 0:00:16]} Be7 {[%emt 0:00:06]} 7. Bxe7 {[%emt 0:00:10]} Ngxe7 {[%emt 0:00:02]} 8. dxc5 {[%emt 0:01:43]} Qa5 {[%emt 0:00:24]} 9. e3 {[%emt 0:01:09]} Qxc5 {[%emt 0:00:05]} 10. Bd3 {[%emt 0:00:29]} O-O {[%emt 0:01:04]} 11. O-O {[%emt 0:00:02]} h6 {[%emt 0:00:59]} 12. Rc1 {[%emt 0:00:02]} Bg4 {[%emt 0:01:52]} 13. h3 {[%emt 0:00:05]} Be6 {[%emt 0:00:50]} 14. a3 {[%emt 0:02:07]} Rfd8 {[%emt 0:01:38]} 15. Qa4 {[%emt 0:00:28]} Qb6 {[%emt 0:00:51]} 16. Nb5 {[%emt 0:02:20]} a6 {[%emt 0:02:42]} 17. Nbd4 {[%emt 0:00:01]} Bd7 {[%emt 0:01:08]} 18. Qc2 {[%emt 0:05:16]} Rac8 {[%emt 0:00:16]} 19. Qe2 {[%emt 0:01:08]} a5 {[%emt 0:01:55]} 20. Rfd1 {[%emt 0:00:49]} g6 {[%emt 0:00:45]} 21. Bb1 {[%emt 0:00:42]} Kg7 {[%emt 0:00:31]} 22. Qb5 {[%emt 0:00:10]} Qa7 {[%emt 0:00:44]} 23. Qd3 {[%emt 0:00:05]} Qb8 {[%emt 0:00:58]} 24. Nxc6 {[%emt 0:00:01]} Nxc6 {[%emt 0:00:22]} 25. Qc3+ {[%emt 0:00:04]} Kg8 {[%emt 0:00:17]} 26. Qf6 {[%emt 0:00:03]} Be8 {[%emt 0:00:09]} 27. h4 {[%emt 0:00:22]} Qd6 {[%emt 0:00:12]} 28. Qxd6 {[%emt 0:00:46]} Rxd6 {[%emt 0:00:02]} 29. Nd4 {[%emt 0:00:22]} Rcd8 {[%emt 0:00:06]} 30. Nxc6 {[%emt 0:00:02]} Bxc6 {[%emt 0:00:06]} 31. Rd4 {[%emt 0:00:05]} Kf8 {[%emt 0:00:10]} 32. Ba2 {[%emt 0:00:15]} Ke7 {[%emt 0:00:08]} 33. f3 {[%emt 0:00:08]} h5 {[%emt 0:00:04]} 34. Kf2 {[%emt 0:00:01]} Kf6 {[%emt 0:00:30]} 35. Rc5 {[%emt 0:00:03]} a4 {[%emt 0:00:10]} 36. Ra5 {[%emt 0:00:05]} Ke5 {[%emt 0:00:25]} 37. Rc5 {[%emt 0:00:09]} f5 {[%emt 0:00:06]} 38. g3 {[%emt 0:00:23]} Ra8 {[%emt 0:00:30]} 39. Ke1 {[%emt 0:00:02]} Ra6 {[%emt 0:00:02]} 40. Kd2 {[%emt 0:00:01]} Rb6 {[%emt 0:00:02]} 41. Kc3 {[%emt 0:00:11]} Ra6 {[%emt 0:00:11]} 42. Bb1 {[%emt 0:00:04]} b6 {[%emt 0:00:15]} 43. f4+ {[%emt 0:00:59]} Ke6 {[%emt 0:00:02]} 44. Rxc6 {[%emt 0:00:20]} Rxc6+ {[%emt 0:00:02]} 45. Kd2 {[%emt 0:00:04]} Ra5 {[%emt 0:00:04]} 46. Bc2 {[%emt 0:00:08]} Rc4 {[%emt 0:00:09]} 47. Rd3 {[%emt 0:00:05]} d4 {[%emt 0:00:11]} 48. Rxd4 {[%emt 0:00:24]} Rxd4+ {[%emt 0:00:02]} 49. exd4 {[%emt 0:00:01]} Kd5 {[%emt 0:00:03]} 50. Kd3 {[%emt 0:00:16]} Ra7 {[%emt 0:00:04]} 51. Bd1 {[%emt 0:00:06]} b5 {[%emt 0:00:05]} 52. Bf3+ {[%emt 0:00:02]} Kd6 {[%emt 0:00:01]} 53. Be2 {[%emt 0:00:23]} Re7 {[%emt 0:00:06]} 54. Kd2 Rb7 {[%emt 0:00:08]} 55. Kc3 {[%emt 0:00:21]} Re7 {[%emt 0:00:10]} 56. Kd2 {[%emt 0:00:04]} Kc6 {[%emt 0:00:10]} 57. Bf3+ {[%emt 0:00:04]} Kb6 {[%emt 0:00:01]} 58. Be2 {[%emt 0:00:04]} Ka5 {[%emt 0:00:05]} 59. Bf3 {[%emt 0:00:19]} b4 {[%emt 0:00:02]} 60. d5 {[%emt 0:00:09]} bxa3 {[%emt 0:00:12]} 61. bxa3 {[%emt 0:00:06]} Kb5 {[%emt 0:00:04]} 62. Kd3 {[%emt 0:00:30]} Kc5 {[%emt 0:00:04]} 63. d6 {[%emt 0:00:13]} Rd7 {[%emt 0:00:03]} 64. Kc3 {[%emt 0:00:11]} Rxd6 {[%emt 0:00:02]} 65. Be2 {[%emt 0:00:04]} Re6 {[%emt 0:00:04]} 0-1

[Event "Hungarian Rapid-ch 2022"]
[Site "Ajka"]
[Date "2022.07.16"]
[Round "5.1"]
[White "Balog, Imre"]
[Black "Prohaszka, Peter"]
[Result "1/2-1/2"]
[ECO "D02"]
[WhiteElo "2594"]
[BlackElo "2570"]
[Annotator "ChessBase"]
[PlyCount "204"]
[EventDate "2022.07.15"]
[EventType "swiss"]
[EventCountry "HUN"]
[SourceTitle "playchess.com"]
[Source "ChessBase"]
[SourceQuality "1"]
[TimeControl "900+10"]

1. d4 {[%emt 0:00:15]} d5 {[%emt 0:00:18]} 2. Nf3 {[%emt 0:00:03]} Nf6 {[%emt 0:00:01]} 3. Bf4 {[%emt 0:00:05]} c5 {[%emt 0:00:17]} 4. e3 {[%emt 0:00:13]} e6 {[%emt 0:00:24]} 5. Nbd2 {[%emt 0:01:18]} Qb6 {[%emt 0:00:02]} 6. Rb1 {[%emt 0:00:25]} cxd4 {[%emt 0:00:02]} 7. exd4 {[%emt 0:00:01]} Bd7 {[%emt 0:00:00]} 8. c3 {[%emt 0:01:14]} Bb5 {[%emt 0:00:12]} 9. Bxb8 {[%emt 0:01:31]} Bxf1 {[%emt 0:01:25]} 10. Nxf1 {[%emt 0:01:09]} Rxb8 {[%emt 0:00:01]} 11. Qa4+ {[%emt 0:01:03]} Qc6 {[%emt 0:01:14]} 12. Qxc6+ {[%emt 0:01:45]} bxc6 {[%emt 0:00:01]} 13. Ne3 {[%emt 0:00:02]} c5 {[%emt 0:00:40]} 14. Ke2 {[%emt 0:00:07]} cxd4 {[%emt 0:00:45]} 15. cxd4 {[%emt 0:00:02]} Bd6 {[%emt 0:02:32]} 16. Rhc1 {[%emt 0:00:52]} Ke7 {[%emt 0:00:44]} 17. Ne1 {[%emt 0:00:56]} Rhc8 {[%emt 0:00:41]} 18. Nd3 {[%emt 0:00:08]} Nd7 {[%emt 0:00:40]} 19. g3 {[%emt 0:00:48]} f6 {[%emt 0:00:52]} 20. f4 {[%emt 0:00:04]} f5 {[%emt 0:00:30]} 21. Rxc8 {[%emt 0:02:03]} Rxc8 {[%emt 0:00:02]} 22. Rc1 {[%emt 0:00:01]} Rxc1 {[%emt 0:00:39]} 23. Nxc1 {[%emt 0:00:01]} Nf6 {[%emt 0:00:01]} 24. Nd3 {[%emt 0:00:08]} Ne4 {[%emt 0:01:44]} 25. Nf1 {[%emt 0:00:48]} Bc7 {[%emt 0:00:36]} 26. Nd2 {[%emt 0:00:02]} Bb6 {[%emt 0:00:19]} 27. Nf3 {[%emt 0:00:31]} h6 {[%emt 0:00:19]} 28. Nde5 {[%emt 0:01:00]} g5 {[%emt 0:00:37]} 29. fxg5 {[%emt 0:00:04]} hxg5 {[%emt 0:00:08]} 30. g4 {[%emt 0:00:02]} a6 {[%emt 0:01:30]} 31. h3 {[%emt 0:00:12]} Bc7 {[%emt 0:00:30]} 32. Nc6+ {[%emt 0:00:22]} Kd6 {[%emt 0:00:22]} 33. Nb4 {[%emt 0:00:02]} a5 {[%emt 0:00:11]} 34. Nd3 {[%emt 0:00:01]} a4 {[%emt 0:00:41]} 35. Nf2 {[%emt 0:00:36]} Bd8 {[%emt 0:00:21]} 36. Nd1 {[%emt 0:00:02]} Bf6 {[%emt 0:00:56]} 37. Ne3 {[%emt 0:00:12]} f4 {[%emt 0:00:18]} 38. Nd1 {[%emt 0:00:02]} e5 {[%emt 0:00:06]} 39. dxe5+ {[%emt 0:00:39]} Bxe5 {[%emt 0:00:01]} 40. h4 {[%emt 0:00:07]} gxh4 {[%emt 0:00:24]} 41. Nxh4 {[%emt 0:00:01]} Bf6 {[%emt 0:00:09]} 42. Nf3 {[%emt 0:00:04]} Kc5 {[%emt 0:00:02]} 43. Kd3 {[%emt 0:00:42]} Kb4 {[%emt 0:00:04]} 44. Ne1 {[%emt 0:00:14]} Nc5+ {[%emt 0:00:22]} 45. Ke2 {[%emt 0:00:02]} Kc4 {[%emt 0:00:05]} 46. Ng2 {[%emt 0:00:51]} Nd3 {[%emt 0:00:33]} 47. b3+ {[%emt 0:00:09]} axb3 {[%emt 0:00:01]} 48. axb3+ {[%emt 0:00:00]} Kd4 {[%emt 0:00:00]} 49. Kf3 {[%emt 0:00:19]} Bg5 {[%emt 0:00:04]} 50. Ke2 {[%emt 0:00:09]} Ne5 {[%emt 0:00:15]} 51. Ne1 {[%emt 0:00:04]} Kc5 {[%emt 0:00:27]} 52. Nf2 {[%emt 0:00:37]} Bh6 {[%emt 0:00:26]} 53. Nfd3+ {[%emt 0:00:34]} Nxd3 {[%emt 0:00:02]} 54. Kxd3 {[%emt 0:00:02]} Kb4 {[%emt 0:00:15]} 55. Kc2 {[%emt 0:00:00]} Kc5 {[%emt 0:00:07]} 56. Nf3 {[%emt 0:00:02]} Bg7 {[%emt 0:00:18]} 57. Ng5 {[%emt 0:00:02]} Kd6 {[%emt 0:00:10]} 58. Kd3 {[%emt 0:00:04]} Bf6 {[%emt 0:00:09]} 59. Nf3 {[%emt 0:00:13]} Kc5 {[%emt 0:00:01]} 60. g5 {[%emt 0:00:02]} Bh8 {[%emt 0:00:11]} 61. Nh4 {[%emt 0:00:04]} Kb4 {[%emt 0:00:12]} 62. Ng6 {[%emt 0:00:05]} Bg7 {[%emt 0:00:19]} 63. Nxf4 {[%emt 0:00:02]} Kxb3 {[%emt 0:00:06]} 64. Nxd5 {[%emt 0:00:02]} Bh8 {[%emt 0:00:10]} 65. Nf6 {[%emt 0:00:34]} Kb4 {[%emt 0:00:14]} 66. Kd4 {[%emt 0:00:01]} Kb3 {[%emt 0:00:07]} 67. Ke4 {[%emt 0:00:24]} Kc3 {[%emt 0:00:04]} 68. Nh5 {[%emt 0:00:34]} Kd2 {[%emt 0:00:03]} 69. Nf4 {[%emt 0:00:02]} Ke1 {[%emt 0:00:13]} 70. Ng6 {[%emt 0:00:12]} Bg7 {[%emt 0:00:17]} 71. Kf5 {[%emt 0:00:06]} Kf2 {[%emt 0:00:04]} 72. Nf4 {[%emt 0:00:01]} Kf3 {[%emt 0:00:13]} 73. Nd3 {[%emt 0:01:20]} Ke3 {[%emt 0:00:11]} 74. Nc5 {[%emt 0:00:02]} Bh8 {[%emt 0:00:11]} 75. Nd7 {[%emt 0:00:04]} Kf3 {[%emt 0:00:05]} 76. Ne5+ {[%emt 0:00:05]} Kg3 {[%emt 0:00:07]} 77. Nf7 {[%emt 0:00:01]} Bg7 {[%emt 0:00:06]} 78. Nd6 {[%emt 0:00:25]} Bh8 {[%emt 0:00:07]} 79. Ne8 {[%emt 0:00:17]} Kf3 {[%emt 0:00:16]} 80. Nc7 {[%emt 0:00:38]} Kg3 {[%emt 0:00:07]} 81. Ne6 {[%emt 0:00:03]} Kf3 {[%emt 0:00:08]} 82. Nf8 {[%emt 0:00:18]} Bg7 {[%emt 0:00:15]} 83. Ng6 {[%emt 0:00:01]} Kg3 {[%emt 0:00:07]} 84. Ne5 {[%emt 0:00:14]} Bh8 {[%emt 0:00:05]} 85. Nf7 {[%emt 0:00:06]} Bg7 {[%emt 0:00:03]} 86. Kg6 {[%emt 0:00:16]} Bb2 {[%emt 0:00:01]} 87. Kf5 {[%emt 0:00:10]} Bg7 {[%emt 0:00:03]} 88. Nh6 {[%emt 0:00:04]} Bh8 {[%emt 0:00:27]} 89. Ng8 {[%emt 0:00:02]} Bg7 {[%emt 0:00:19]} 90. Kg6 {[%emt 0:00:19]} Bb2 {[%emt 0:00:06]} 91. Kf7 {[%emt 0:00:02]} Kg4 {[%emt 0:00:13]} 92. g6 {[%emt 0:00:01]} Kg5 {[%emt 0:00:15]} 93. Ne7 {[%emt 0:00:02]} Ba1 {[%emt 0:00:08]} 94. Nc6 {[%emt 0:00:04]} Bc3 {[%emt 0:00:12]} 95. Nb4 {[%emt 0:00:05]} Bh8 {[%emt 0:00:20]} 96. Nd3 {[%emt 0:00:02]} Kf5 {[%emt 0:00:04]} 97. Nc5 {[%emt 0:00:15]} Ba1 {[%emt 0:00:11]} 98. Nb7 {[%emt 0:00:16]} Kg5 {[%emt 0:00:07]} 99. Nd6 {[%emt 0:00:02]} Bh8 {[%emt 0:00:09]} 100. Ne4+ {[%emt 0:00:11]} Kf5 {[%emt 0:00:02]} 101. Nf6 {[%emt 0:00:01]} Bxf6 {[%emt 0:00:02]} 102. g7 {[%emt 0:00:01]} Bxg7 {[%emt 0:00:01]} 1/2-1/2

[Event "Hungarian Rapid-ch 2022"]
[Site "Ajka"]
[Date "2022.07.16"]
[Round "5.2"]
[White "Korpa, Bence"]
[Black "Hera, Imre Jr."]
[Result "1/2-1/2"]
[ECO "E06"]
[WhiteElo "2537"]
[BlackElo "2568"]
[Annotator "ChessBase"]
[PlyCount "26"]
[EventDate "2022.07.15"]
[EventType "swiss"]
[EventCountry "HUN"]
[SourceTitle "playchess.com"]
[Source "ChessBase"]
[SourceQuality "1"]
[TimeControl "900+10"]

1. d4 {[%emt 0:00:13]} Nf6 {[%emt 0:00:20]} 2. c4 {[%emt 0:00:04]} e6 {[%emt 0:00:05]} 3. g3 {[%emt 0:00:05]} d5 {[%emt 0:00:06]} 4. Bg2 {[%emt 0:00:03]} Be7 {[%emt 0:00:34]} 5. Nf3 {[%emt 0:00:07]} O-O {[%emt 0:00:03]} 6. O-O {[%emt 0:00:05]} dxc4 {[%emt 0:00:39]} 7. Qc2 {[%emt 0:00:09]} a6 {[%emt 0:00:23]} 8. a4 {[%emt 0:00:08]} Bd7 {[%emt 0:00:07]} 9. Qxc4 {[%emt 0:00:08]} Bc6 {[%emt 0:00:01]} 10. Bf4 {[%emt 0:00:17]} Nd5 {[%emt 0:00:21]} 11. Nc3 {[%emt 0:00:37]} Nxf4 {[%emt 0:00:03]} 12. gxf4 {[%emt 0:00:03]} a5 {[%emt 0:00:20]} 13. Rad1 {[%emt 0:00:17]} Bd5 {[%emt 0:00:51]} 1/2-1/2

[Event "Hungarian Rapid-ch 2022"]
[Site "Ajka"]
[Date "2022.07.16"]
[Round "5.3"]
[White "Berkes, Ferenc"]
[Black "Varga, Zoltan"]
[Result "1-0"]
[ECO "A08"]
[WhiteElo "2649"]
[BlackElo "2401"]
[Annotator "ChessBase"]
[PlyCount "38"]
[EventDate "2022.07.15"]
[EventType "swiss"]
[EventCountry "HUN"]
[SourceTitle "playchess.com"]
[Source "ChessBase"]
[SourceQuality "1"]
[TimeControl "900+10"]

1. Nf3 {[%emt 0:00:12]} d5 {[%emt 0:00:11]} 2. g3 {[%emt 0:00:01]} c5 {[%emt 0:00:18]} 3. Bg2 {[%emt 0:00:02]} Nc6 {[%emt 0:00:01]} 4. d4 {[%emt 0:00:04]} e6 {[%emt 0:00:21]} 5. O-O {[%emt 0:00:03]} Qb6 {[%emt 0:00:02]} 6. e3 {[%emt 0:00:08]} Nf6 {[%emt 0:00:11]} 7. b3 {[%emt 0:00:03]} cxd4 {[%emt 0:01:02]} 8. exd4 {[%emt 0:00:02]} Be7 {[%emt 0:00:01]} 9. c4 {[%emt 0:00:10]} O-O {[%emt 0:00:14]} 10. Nc3 {[%emt 0:00:37]} Qa5 {[%emt 0:04:34]} 11. Bd2 {[%emt 0:00:30]} Qd8 {[%emt 0:02:46]} 12. Be3 {[%emt 0:02:13]} b6 {[%emt 0:00:02]} 13. Ne5 {[%emt 0:00:06]} Bb7 {[%emt 0:00:14]} 14. Rc1 {[%emt 0:00:33]} Rc8 {[%emt 0:01:14]} 15. cxd5 {[%emt 0:00:03]} Nxd5 {[%emt 0:00:03]} 16. Nxd5 {[%emt 0:00:04]} exd5 {[%emt 0:00:01]} 17. Qg4 {[%emt 0:01:58]} Qd6 {[%emt 0:00:01]} 18. Bf4 {[%emt 0:00:24]} Nxe5 {[%emt 0:00:21]} 19. Bxe5 {[%emt 0:00:04]} Qg6 {[%emt 0:00:01]} 1-0

[Event "Hungarian Rapid-ch 2022"]
[Site "Ajka"]
[Date "2022.07.16"]
[Round "5.4"]
[White "Papp, Levente"]
[Black "Gledura, Benjamin"]
[Result "0-1"]
[ECO "A10"]
[WhiteElo "2394"]
[BlackElo "2637"]
[Annotator "ChessBase"]
[PlyCount "62"]
[EventDate "2022.07.15"]
[EventType "swiss"]
[EventCountry "HUN"]
[SourceTitle "playchess.com"]
[Source "ChessBase"]
[SourceQuality "1"]
[TimeControl "900+10"]

1. c4 {[%emt 0:00:15]} d6 {[%emt 0:00:13]} 2. Nc3 {[%emt 0:00:13]} e5 {[%emt 0:00:03]} 3. g3 {[%emt 0:00:12]} f5 {[%emt 0:00:10]} 4. d4 {[%emt 0:00:33]} Be7 {[%emt 0:00:06]} 5. Bg2 {[%emt 0:00:41]} Nf6 {[%emt 0:00:08]} 6. e3 {[%emt 0:01:04]} c6 {[%emt 0:00:19]} 7. Nge2 {[%emt 0:00:06]} O-O {[%emt 0:00:34]} 8. O-O {[%emt 0:00:03]} e4 {[%emt 0:00:08]} 9. f3 {[%emt 0:00:47]} d5 {[%emt 0:01:14]} 10. Qb3 {[%emt 0:00:36]} Kh8 {[%emt 0:00:33]} 11. fxe4 {[%emt 0:01:58]} dxe4 {[%emt 0:02:04]} 12. Bd2 {[%emt 0:00:11]} Na6 {[%emt 0:00:02]} 13. Rad1 {[%emt 0:00:36]} Qe8 {[%emt 0:00:24]} 14. a3 {[%emt 0:01:19]} Rb8 {[%emt 0:00:26]} 15. Bc1 {[%emt 0:01:06]} b5 {[%emt 0:00:39]} 16. cxb5 {[%emt 0:01:27]} cxb5 {[%emt 0:00:06]} 17. Qa2 {[%emt 0:00:06]} b4 {[%emt 0:02:02]} 18. axb4 {[%emt 0:00:04]} Nxb4 {[%emt 0:00:03]} 19. Qxa7 {[%emt 0:01:19]} Ba6 {[%emt 0:00:16]} 20. Qc7 {[%emt 0:00:48]} Nfd5 {[%emt 0:01:00]} 21. Qe5 {[%emt 0:00:15]} Nxc3 {[%emt 0:00:59]} 22. Nxc3 {[%emt 0:00:01]} Bxf1 {[%emt 0:00:07]} 23. Bxf1 {[%emt 0:00:02]} Bg5 {[%emt 0:00:18]} 24. Qa5 {[%emt 0:02:40]} Nc2 {[%emt 0:00:36]} 25. Nd5 {[%emt 0:00:50]} Qh5 {[%emt 0:00:06]} 26. Qd2 {[%emt 0:00:23]} Nxe3 {[%emt 0:00:05]} 27. Be2 {[%emt 0:00:13]} Nxd5 {[%emt 0:00:24]} 28. Bxh5 {[%emt 0:00:05]} Bxd2 {[%emt 0:00:02]} 29. Bxd2 {[%emt 0:00:26]} Rxb2 {[%emt 0:00:04]} 30. Kf1 {[%emt 0:00:33]} e3 {[%emt 0:00:36]} 31. Be1 {[%emt 0:00:08]} f4 {[%emt 0:00:03]} 0-1

[Event "Hungarian Rapid-ch 2022"]
[Site "Ajka"]
[Date "2022.07.16"]
[Round "5.5"]
[White "Kozak, Adam"]
[Black "Aczel, Gergely"]
[Result "1-0"]
[ECO "B95"]
[WhiteElo "2522"]
[BlackElo "2499"]
[Annotator "ChessBase"]
[PlyCount "53"]
[EventDate "2022.07.15"]
[EventType "swiss"]
[EventCountry "HUN"]
[SourceTitle "playchess.com"]
[Source "ChessBase"]
[SourceQuality "1"]
[TimeControl "900+10"]

1. e4 {[%emt 0:00:12]} c5 {[%emt 0:00:11]} 2. Nf3 {[%emt 0:00:01]} d6 {[%emt 0:00:00]} 3. d4 {[%emt 0:00:02]} cxd4 {[%emt 0:00:02]} 4. Nxd4 {[%emt 0:00:02]} Nf6 {[%emt 0:00:01]} 5. Nc3 {[%emt 0:00:01]} a6 {[%emt 0:00:01]} 6. Bg5 {[%emt 0:00:02]} e6 {[%emt 0:00:01]} 7. a3 {[%emt 0:00:01]} Be7 {[%emt 0:01:16]} 8. Qd2 {[%emt 0:01:18]} Qc7 {[%emt 0:02:37]} 9. O-O-O {[%emt 0:00:23]} h6 {[%emt 0:00:40]} 10. Be3 {[%emt 0:00:17]} Nbd7 {[%emt 0:00:54]} 11. f3 {[%emt 0:00:39]} Rb8 {[%emt 0:00:45]} 12. g4 {[%emt 0:00:43]} b5 {[%emt 0:00:05]} 13. Be2 {[%emt 0:01:16]} Ne5 {[%emt 0:00:37]} 14. Kb1 {[%emt 0:02:45]} Nfd7 {[%emt 0:01:47]} 15. f4 {[%emt 0:01:04]} Nc4 {[%emt 0:00:06]} 16. Bxc4 {[%emt 0:00:04]} Qxc4 {[%emt 0:00:30]} 17. b3 {[%emt 0:01:59]} Qc7 {[%emt 0:00:13]} 18. f5 {[%emt 0:00:03]} Nc5 {[%emt 0:02:07]} 19. Rhe1 {[%emt 0:01:41]} Bd7 {[%emt 0:01:40]} 20. fxe6 {[%emt 0:00:09]} fxe6 {[%emt 0:00:34]} 21. Nf5 {[%emt 0:00:02]} Bf8 {[%emt 0:03:12]} 22. Nxd6+ {[%emt 0:00:42]} Bxd6 {[%emt 0:00:03]} 23. Qxd6 {[%emt 0:00:02]} Qxd6 {[%emt 0:00:01]} 24. Rxd6 {[%emt 0:00:02]} Rc8 {[%emt 0:00:04]} 25. Red1 {[%emt 0:01:28]} O-O {[%emt 0:01:12]} 26. b4 {[%emt 0:00:02]} Nb3 {[%emt 0:00:38]} 27. Kb2 {[%emt 0:00:02]} 1-0